bitfinex-derivatives/quotes_SOLF0:USTF0_20241015
["timestamp","ask_amount","ask_price","bid_price","bid_amount"]
[1728970861356,1.3017,154.46,154.41,9.95]
[1728970861857,3.2388,154.45,154.41,13.1895]
[1728970862057,9.95,154.45,154.4,9.95]
[1728970863457,3.2391,154.44,154.4,13.1897]
[1728970864162,0.12502,154.49,154.43,9.95]
[1728970864361,0.12502,154.49,154.46,9.95]
[1728970864664,3.36302,154.49,154.46,9.95]
[1728970865265,3.2385,154.47,154.44,4.84]
[1728970865565,4.96502,154.49,154.4,4.84]
[1728970865864,3.2386,154.46,154.43,9.95]
[1728970866863,3.2382,154.48,154.44,9.95]
[1728970867461,4.96502,154.49,154.44,9.95]
[1728970867669,3.2383,154.47,154.44,9.95]
[1728970868064,9.95,154.47,154.43,13.189]
[1728970868265,9.95,154.47,154.41,9.95]
[1728970868966,9.95,154.45,154.38,4.019]
[1728970869267,9.95,154.45,154.4,9.95]
[1728970869464,9.95,154.44,154.37,0.12502]
[1728970869666,9.95,154.44,154.38,9.95]
[1728970869964,9.95,154.44,154.37,0.12502]
[1728970870169,9.95,154.43,154.37,0.12502]
[1728970870368,9.95,154.43,154.37,10.07502]
[1728970870568,9.95,154.43,154.38,9.95]
[1728970870868,3.2398,154.4,154.38,9.95]
[1728970871658,3.2394,154.42,154.38,9.95]
[1728970871860,9.95,154.44,154.39,9.95]
[1728970872165,7.453,154.45,154.39,9.95]
[1728970872474,3.2394,154.42,154.39,9.95]
[1728970873175,2.613,154.45,154.39,9.95]
[1728970873470,2.613,154.45,154.37,0.12502]
[1728970873471,3.239,154.44,154.41,9.95]
[1728970874272,3.2392,154.43,154.41,9.95]
[1728970874473,6.1186,154.45,154.41,9.95]
[1728970874868,3.2392,154.43,154.41,9.95]
[1728970875668,14.81,154.48,154.42,9.95]
[1728970876166,3.2386,154.46,154.42,9.95]
[1728970876968,3.2386,154.46,154.43,9.95]
[1728970877166,4.86,154.48,154.43,9.95]
[1728970878671,3.2383,154.47,154.43,13.1889]
[1728970879674,0.12502,154.49,154.46,9.95]
[1728970879871,3.2382,154.48,154.44,9.95]
[1728970880369,10.07502,154.49,154.44,9.95]
[1728970880672,3.2384,154.47,154.43,4.86]
[1728970881063,3.2384,154.47,154.42,9.95]
[1728970881369,3.2384,154.47,154.43,3.2391]
[1728970882078,3.2384,154.47,154.42,8.0992]
[1728970882280,3.2384,154.47,154.43,9.95]
[1728970883178,3.2384,154.47,154.43,13.1891]
[1728970883478,3.36302,154.49,154.45,9.95]
[1728970884375,3.36302,154.49,154.45,13.1885]
[1728970885169,0.12502,154.49,154.46,14.81]
[1728970885371,0.12502,154.49,154.48,9.95]
[1728970886471,85.70543022,154.56,154.5,9.95]
[1728970887474,3.2371,154.53,154.5,9.95]
[1728970887776,0.12502,154.61,154.52,9.95]
[1728970887973,10.07502,154.61,154.54,9.95]
[1728970888672,9.95,154.6,154.54,9.95]
[1728970888878,3.2359,154.59,154.54,13.1868]
[1728970889480,3.2356,154.6,154.54,13.1868]
[1728970889678,13.1856,154.6,154.54,13.1868]
[1728970889975,3.2356,154.6,154.54,3.2368]
[1728970890176,3.2356,154.6,154.53,18.7869]
[1728970890379,3.2358,154.59,154.53,18.7869]
[1728970890581,0.12502,154.61,154.53,15.55]
[1728970890975,0.12502,154.61,154.55,3.2366]
[1728970890976,3.2357,154.6,154.55,3.2366]
[1728970891177,0.12502,154.61,154.55,20.41]
[1728970891778,3.2357,154.6,154.55,20.41]
[1728970891975,15.67502,154.61,154.52,3.19340018]
[1728970892175,15.55,154.59,154.52,4.86]
[1728970892481,15.55,154.57,154.49,4.98502]
[1728970892687,15.55,154.55,154.49,4.98502]
[1728970892882,3.2376,154.51,154.49,0.12502]
[1728970893191,15.55,154.55,154.49,0.12502]
[1728970893879,15.55,154.51,154.43,0.12502]
[1728970894085,15.55,154.48,154.43,0.12502]
[1728970894479,0.97217354,154.47,154.43,0.12502]
[1728970894687,3.2389,154.44,154.43,0.12502]
[1728970895384,15.55,154.48,154.43,0.12502]
[1728970895582,3.2383,154.47,154.43,0.12502]
[1728970896487,3.2385,154.46,154.43,0.12502]
[1728970896982,3.2389,154.45,154.43,0.12502]
[1728970897187,15.55,154.48,154.43,0.12502]
[1728970898286,3.2389,154.44,154.43,0.12502]
[1728970900283,15.55,154.44,154.37,0.12502]
[1728970900489,3.2402,154.38,154.37,0.12502]
[1728970902383,18.7902,154.38,154.37,0.12502]
[1728970902797,23.6502,154.38,154.37,0.12502]
[1728970903195,3.2413,154.33,154.31,0.12502]
[1728970903400,15.55,154.35,154.31,0.12502]
[1728970904500,3.2414,154.32,154.31,0.12502]
[1728970906493,3.2411,154.34,154.31,0.12502]
[1728970906799,20.61,154.38,154.31,0.12502]
[1728970907492,3.2414,154.33,154.31,0.12502]
[1728970908391,3.2414,154.32,154.31,0.12502]
[1728970924606,20.61,154.38,154.31,0.12502]
[1728970925112,23.9225033,154.38,154.31,0.12502]
[1728970925314,3.2414,154.32,154.31,0.12502]
[1728970934718,9.97,154.34,154.31,0.12502]
[1728970935320,3.2414,154.32,154.31,0.12502]
[1728970935619,3.2414,154.32,154.31,10.09502]
[1728970935816,3.241,154.35,154.31,10.09502]
[1728970936119,9.97,154.38,154.33,9.97]
[1728970936513,9.97,154.35,154.31,0.12502]
[1728970937120,3.2414,154.32,154.31,0.12502]
[1728970940226,13.2114,154.32,154.31,0.12502]
[1728970940426,3.2414,154.32,154.31,0.12502]
[1728970949719,13.2114,154.32,154.31,0.12502]
[1728970950218,3.2414,154.32,154.31,0.12502]
[1728970957221,3.2414,154.32,154.31,10.09502]
[1728970958440,3.2414,154.33,154.31,10.09502]
[1728970959134,3.2414,154.32,154.31,10.09502]
[1728970960436,3.2414,154.32,154.31,0.12502]
[1728970968438,13.2114,154.32,154.31,0.12502]
[1728970969335,13.2114,154.32,154.25,0.12502]
[1728970969336,9.97,154.32,154.25,0.12502]
[1728970969538,2.6647,154.35,154.25,0.12502]
[1728970969539,3.2427,154.26,154.25,10.09502]
[1728970970242,3.2427,154.26,154.25,0.12502]
[1728970978550,13.2127,154.26,154.25,0.12502]
[1728970985059,13.2127,154.26,154.25,2e-05]
[1728970985455,14.18384711,154.26,154.25,2e-05]
[1728970986455,13.2127,154.26,154.25,2e-05]
[1728970987159,3.2427,154.26,154.25,2e-05]
[1728970987460,18.0727,154.26,154.25,2e-05]
[1728970988363,8.1027,154.26,154.25,2e-05]
[1728970988559,18.0727,154.26,154.25,2e-05]
[1728970988766,13.2127,154.26,154.25,2e-05]
[1728970988950,18.0727,154.26,154.25,2e-05]
[1728970989859,19.0436348,154.26,154.25,2e-05]
[1728970990662,9.0736348,154.26,154.25,2e-05]
[1728970990860,18.0727,154.26,154.25,2e-05]
[1728970998166,19.04358061,154.26,154.25,2e-05]
[1728970999164,18.0727,154.26,154.25,2e-05]
[1728970999367,8.1027,154.26,154.25,2e-05]
[1728970999567,18.0727,154.26,154.25,2e-05]
[1728971001073,13.2127,154.26,154.25,2e-05]
[1728971001270,18.0727,154.26,154.25,2e-05]
[1728971001972,19.04359836,154.26,154.25,2e-05]
[1728971003068,18.0727,154.26,154.25,2e-05]
[1728971003671,19.04358918,154.26,154.25,2e-05]
[1728971005375,19.043553,154.26,154.25,2e-05]
[1728971009173,13.2127,154.26,154.25,2e-05]
[1728971009373,19.04400522,154.26,154.25,2e-05]
[1728971011183,3.244,154.2,154.19,0.12502]
[1728971011386,13.214,154.2,154.19,0.12502]
[1728971013777,3.244,154.2,154.19,0.12502]
[1728971015586,8.104,154.2,154.19,0.12502]
[1728971015773,3.244,154.2,154.19,0.12502]
[1728971017483,3.244,154.2,154.19,10.09502]
[1728971020784,3.2437,154.22,154.19,10.09502]
[1728971020984,4.0314,154.27,154.19,10.09502]
[1728971020985,14.83,154.24,154.2,9.97]
[1728971021182,14.83,154.24,154.19,0.12502]
[1728971021387,14.83,154.24,154.19,10.09502]
[1728971021787,3.243,154.25,154.19,10.09502]
[1728971021986,9.97,154.29,154.24,9.97]
[1728971022190,14.83,154.29,154.25,9.97]
[1728971022392,4.86,154.3,154.26,9.97]
[1728971022685,0.12502,154.31,154.28,9.97]
[1728971022985,0.12502,154.31,154.3,9.97]
[1728971023185,14.95502,154.37,154.3,9.97]
[1728971023387,3.2406,154.36,154.32,9.97]
[1728971023693,4.98502,154.37,154.32,9.97]
[1728971023889,4.98502,154.37,154.34,9.97]
[1728971023890,0.12502,154.37,154.34,9.97]
[1728971024094,0.12502,154.37,154.35,9.97]
[1728971024992,0.12502,154.37,154.33,3.19132273]
[1728971025292,0.12502,154.37,154.32,1.2966]
[1728971025293,9.97,154.36,154.32,1.2966]
[1728971025493,3.2416,154.32,154.28,4.86]
[1728971025694,9.97,154.3,154.28,4.86]
[1728971026090,9.97,154.3,154.26,9.97]
[1728971026401,13.2116,154.32,154.27,9.97]
[1728971026790,9.97,154.32,154.25,6.26162]
[1728971027096,9.97,154.32,154.26,9.97]
[1728971027597,3.2417,154.31,154.26,9.97]
[1728971028290,3.2419,154.3,154.26,4.84]
[1728971028487,3.2419,154.3,154.26,14.81]
[1728971028688,9.97,154.32,154.26,14.81]
[1728971029595,3.242,154.3,154.26,14.81]
[1728971030993,3.2416,154.32,154.27,9.97]
[1728971031197,3.2416,154.32,154.27,11.3521]
[1728971031689,3.241,154.35,154.31,9.97]
[1728971031890,9.97,154.36,154.31,9.97]
[1728971032794,3.2408,154.35,154.31,9.97]
[1728971033299,3.241,154.34,154.31,9.97]
[1728971033499,9.97,154.33,154.27,1.3821]
[1728971033697,9.97,154.33,154.27,11.3521]
[1728971033899,3.2415,154.32,154.27,1.3821]
[1728971034397,15.57,154.34,154.27,1.3821]
[1728971034398,3.2417,154.31,154.27,1.3821]
[1728971034994,3.2415,154.32,154.27,1.3821]
[1728971035199,4.84,154.33,154.27,1.3821]
[1728971035597,3.2419,154.3,154.27,1.3821]
[1728971038499,4.84,154.33,154.27,1.3821]
[1728971039702,4.84,154.33,154.25,1.42162]
[1728971039703,0.97218775,154.32,154.25,1.42162]
[1728971039902,3.2422,154.29,154.25,1.42162]
[1728971042399,20.41,154.33,154.25,0.12502]
[1728971042600,15.57,154.31,154.25,0.12502]
[1728971042799,15.57,154.28,154.25,0.12502]
[1728971042996,4.84,154.27,154.25,0.12502]
[1728971043196,3.2427,154.26,154.25,0.12502]
[1728971050604,4.21479138,154.26,154.25,0.12502]
[1728971051204,0.97209138,154.26,154.19,15.69502]
[1728971051407,3.2438,154.21,154.19,0.12502]
[1728971052511,18.3536,154.26,154.19,0.12502]
[1728971052805,4.84,154.29,154.19,4.96502]
[1728971053011,4.84,154.29,154.22,15.57]
[1728971053211,3.2428,154.26,154.22,15.57]
[1728971053507,4.84,154.29,154.22,15.57]
[1728971053712,3.2428,154.26,154.22,15.57]
[1728971053901,3.2428,154.26,154.24,9.97]
[1728971054805,9.97,154.28,154.23,9.97]
[1728971055006,9.97,154.27,154.22,9.97]
[1728971055410,3.2428,154.26,154.22,9.97]
[1728971055612,9.97,154.27,154.22,9.97]
[1728971055908,20.42,154.29,154.2,15.58]
[1728971056104,0.97222336,154.28,154.2,15.58]
[1728971056806,3.62482336,154.28,154.2,15.58]
[1728971057005,2.6526,154.28,154.2,15.58]
[1728971057705,2.6526,154.28,154.19,4.96502]
[1728971057706,18.2326,154.28,154.19,4.96502]
[1728971057905,3.244,154.2,154.19,0.12502]
[1728971059902,7.5585,154.21,154.15,0.12518]
[1728971060404,4.86,154.23,154.15,15.70518]
[1728971060602,3.2438,154.21,154.16,3.2447]
[1728971062214,3.244,154.2,154.15,20.56518]
[1728971062410,4.86,154.23,154.15,20.56518]
[1728971062813,3.2438,154.21,154.15,23.81008]
[1728971063013,4.86,154.23,154.15,23.81008]
[1728971063411,3.2439,154.21,154.16,3.2447]
[1728971064111,0.12502,154.25,154.17,3.2446]
[1728971064112,3.2436,154.22,154.17,3.2446]
[1728971064315,3.2436,154.22,154.18,15.58]
[1728971065019,3.2436,154.22,154.18,18.8244]
[1728971065316,3.2434,154.23,154.18,18.8244]
[1728971065519,4.98502,154.25,154.18,15.58]
[1728971065717,3.2436,154.22,154.18,15.58]
[1728971066106,3.2436,154.22,154.15,4.98518]
[1728971066107,4.98502,154.25,154.15,4.98518]
[1728971066322,15.58,154.24,154.15,4.98518]
[1728971066815,3.2439,154.21,154.15,8.23008]
[1728971067020,4.98502,154.25,154.16,15.58]
[1728971067721,4.98502,154.25,154.19,15.58]
[1728971067917,0.12502,154.25,154.19,15.58]
[1728971068516,3.2433,154.24,154.19,18.8241]
[1728971069916,0.12502,154.25,154.19,18.8241]
[1728971070224,3.2434,154.23,154.19,18.8241]
[1728971071919,3.2434,154.23,154.19,15.58]
[1728971072316,0.12502,154.25,154.19,15.58]
[1728971072520,3.2437,154.22,154.19,15.58]
[1728971075627,3.2434,154.23,154.2,3.2439]
[1728971077022,0.12502,154.25,154.19,20.44]
[1728971077320,3.2434,154.23,154.19,23.6841]
[1728971079222,3.2434,154.23,154.19,20.44]
[1728971079618,0.12502,154.25,154.2,3.23513729]
[1728971079928,0.12502,154.25,154.21,15.58]
[1728971080235,0.12502,154.25,154.22,3.32211731]
[1728971080424,0.12502,154.25,154.23,3.2432]
[1728971082225,0.12502,154.25,154.24,3.2431]
[1728971082431,0.12502,154.25,154.22,3.32211731]
[1728971082825,0.12502,154.25,154.23,3.2433]
[1728971085830,0.12502,154.25,154.24,13.2131]
[1728971087333,3.242,154.3,154.26,3.2426]
[1728971087539,0.12502,154.31,154.26,13.2126]
[1728971088035,0.12502,154.31,154.26,3.2426]
[1728971089437,3.242,154.3,154.25,3.2428]
[1728971089640,3.242,154.3,154.24,15.57]
[1728971089838,0.12502,154.31,154.23,8.12426975]
[1728971090334,3.2421,154.29,154.24,3.2429]
[1728971093446,3.242,154.3,154.25,3.2427]
[1728971093948,3.2421,154.29,154.25,3.2427]
[1728971094739,0.12502,154.31,154.24,15.57]
[1728971094943,0.12502,154.31,154.26,3.2427]
[1728971095245,0.12502,154.31,154.27,4.84]
[1728971095543,0.12502,154.31,154.28,1.4011]
[1728971096440,0.12502,154.31,154.28,4.6433]
[1728971096746,0.12502,154.31,154.28,1.4011]
[1728971098137,3.2419,154.3,154.27,2.6471]
[1728971098341,3.2419,154.3,154.26,15.57]
[1728971098342,0.12502,154.31,154.26,4.84]
[1728971098536,3.2424,154.28,154.26,4.84]
[1728971098745,15.69502,154.31,154.23,8.1284973]
[1728971098957,15.69502,154.31,154.23,4.84]
[1728971099548,15.69502,154.31,154.24,3.16585997]
[1728971099744,3.2421,154.29,154.24,6.40895997]
[1728971100350,3.2425,154.28,154.23,8.0832]
[1728971100848,3.2425,154.28,154.23,11.34973483]
[1728971101644,15.69502,154.31,154.23,4.84]
[1728971101844,15.57,154.29,154.23,4.84]
[1728971102151,3.2431,154.24,154.23,4.84]
[1728971102550,15.57,154.29,154.23,4.84]
[1728971103045,3.2428,154.26,154.23,4.84]
[1728971103353,15.57,154.29,154.23,4.84]
[1728971103554,3.2429,154.25,154.23,4.84]
[1728971104851,19.69932,154.31,154.23,4.84]
[1728971105046,0.97245202,154.3,154.23,4.84]
[1728971106149,19.69932,154.31,154.23,4.84]
[1728971106349,0.97222607,154.3,154.23,4.84]
[1728971106551,3.2426,154.27,154.23,4.84]
[1728971108151,3.2426,154.27,154.23,8.0833]
[1728971108344,3.2426,154.27,154.23,4.84]
[1728971109553,19.69932,154.31,154.23,20.41]
[1728971109554,3.2423,154.29,154.23,20.41]
[1728971109749,3.2423,154.29,154.24,3.243]
[1728971109949,3.2423,154.29,154.26,9.96]
[1728971111562,3.36682,154.31,154.27,9.96]
[1728971111855,3.36682,154.31,154.26,3.2427]
[1728971112052,0.12502,154.31,154.28,9.96]
[1728971113557,3.36672,154.31,154.28,9.96]
[1728971114654,0.12502,154.31,154.3,9.96]
[1728971115849,0.12502,154.31,154.3,13.2018]
[1728971116045,0.12502,154.31,154.19,0.12502]
[1728971116046,104.0,154.3,154.19,0.12502]
[1728971116253,3.2438,154.21,154.19,0.12502]
[1728971116459,9.96,154.22,154.19,0.12502]
[1728971116648,9.96,154.21,154.19,0.12502]
[1728971117054,3.244,154.2,154.19,0.12502]
[1728971117649,3.2436,154.22,154.19,0.12502]
[1728971117850,20.82,154.26,154.19,0.12502]
[1728971118159,3.2431,154.24,154.19,15.70502]
[1728971118755,5.24,154.26,154.19,15.70502]
[1728971119056,3.243,154.25,154.19,20.94502]
[1728971120053,3.2432,154.24,154.19,20.94502]
[1728971120954,15.58,154.25,154.19,0.12502]
[1728971121156,5.24,154.26,154.19,0.12502]
[1728971121356,15.58,154.24,154.19,0.12502]
[1728971122053,3.244,154.2,154.19,0.12502]
[1728971124562,3.2437,154.22,154.19,0.12502]
[1728971125555,20.82,154.26,154.19,0.12502]
[1728971125758,3.2438,154.21,154.19,0.12502]
[1728971125957,20.82,154.26,154.19,0.12502]
[1728971126164,0.97229119,154.25,154.19,0.12502]
[1728971126364,3.244,154.2,154.19,0.12502]
[1728971127571,5.24,154.26,154.19,0.12502]
[1728971127866,0.97234846,154.25,154.19,0.12502]
[1728971128063,3.2436,154.22,154.19,0.12502]
[1728971130358,3.2438,154.21,154.19,0.12502]
[1728971131367,3.244,154.2,154.19,0.12502]
[1728971133274,5.24,154.27,154.19,15.70502]
[1728971133866,0.97239992,154.26,154.19,15.70502]
[1728971134067,20.82,154.27,154.19,15.70502]
[1728971134374,3.2437,154.22,154.19,15.70502]
[1728971135772,3.243,154.25,154.19,15.70502]
[1728971135977,5.24,154.27,154.2,20.82]
[1728971136480,3.2431,154.24,154.2,20.82]
[1728971136875,19.6996,154.29,154.22,15.58]
[1728971136876,2.7202,154.29,154.22,15.58]
[1728971137078,3.2419,154.3,154.25,3.2428]
[1728971137278,5.24,154.34,154.26,18.81782835]
[1728971137674,3.36682,154.31,154.26,22.06042835]
[1728971137875,3.36682,154.31,154.26,18.81782835]
[1728971138879,0.12502,154.31,154.22,16.9444]
[1728971139088,15.58,154.3,154.23,5.24]
[1728971139277,15.58,154.3,154.22,5.24]
[1728971139477,15.58,154.28,154.22,5.24]
[1728971139686,3.243,154.25,154.22,5.24]
[1728971140078,1.3404,154.29,154.17,26.1917]
[1728971140278,2.588,154.28,154.19,5.36502]
[1728971140587,3.2435,154.22,154.19,5.36502]
[1728971141086,24.92,154.27,154.19,0.12502]
[1728971141291,3.2438,154.21,154.19,0.12502]
[1728971141987,3.2434,154.23,154.19,0.12502]
[1728971142189,5.24,154.26,154.19,0.12502]
[1728971142877,3.2437,154.22,154.19,0.12502]
[1728971144782,3.2431,154.24,154.19,0.12502]
[1728971144985,5.24,154.26,154.19,0.12502]
[1728971145489,3.2437,154.22,154.19,0.12502]
[1728971146387,2.588,154.28,154.19,0.12502]
[1728971147281,3.2426,154.27,154.22,3.2435]
[1728971147481,3.2426,154.27,154.22,8.4035]
[1728971148187,5.8303,154.28,154.24,3.2431]
[1728971148488,4.119,154.36,154.25,24.92]
[1728971148682,4.119,154.36,154.26,5.16]
[1728971149195,4.119,154.36,154.27,1.2961]
[1728971149389,3.2412,154.34,154.29,3.2419]
[1728971149896,4.119,154.36,154.3,5.16]
[1728971150191,3.2409,154.35,154.3,8.4018]
[1728971150386,2.7148,154.36,154.3,8.4018]
[1728971150689,3.2407,154.36,154.3,8.4018]
[1728971151788,3.2414,154.33,154.3,5.16]
[1728971151985,24.92,154.35,154.25,3.2513816]
[1728971152185,24.92,154.33,154.21,5.16]
[1728971152385,24.92,154.33,154.22,5.16]
[1728971152586,24.92,154.3,154.22,5.16]
[1728971152990,3.2431,154.25,154.22,5.16]
[1728971153394,3.2431,154.25,154.2,1.3395]
[1728971153592,3.2431,154.25,154.21,5.16]
[1728971154900,30.08,154.3,154.21,5.16]
[1728971155088,3.2431,154.24,154.21,5.16]
[1728971156200,30.08,154.3,154.21,5.16]
[1728971156201,3.2427,154.26,154.22,3.2435]
[1728971156700,5.16,154.3,154.19,95.12502]
[1728971156892,0.97258926,154.29,154.2,5.16]
[1728971157794,0.97255666,154.28,154.2,8.404]
[1728971158002,30.08,154.3,154.2,8.404]
[1728971158298,0.972561,154.29,154.2,8.404]
[1728971159399,3.2429,154.26,154.2,8.404]
[1728971159797,30.08,154.3,154.2,8.404]
[1728971160001,3.2429,154.26,154.2,8.404]
[1728971161411,3.2426,154.27,154.22,3.2435]
[1728971162102,5.28502,154.31,154.2,5.16]
[1728971162407,3.2424,154.28,154.2,5.16]
[1728971162813,3.2423,154.28,154.2,5.16]
[1728971163012,0.12502,154.31,154.22,24.92]
[1728971163510,3.242,154.3,154.25,3.2428]
[1728971163710,3.242,154.3,154.26,5.16]
[1728971164203,0.12502,154.31,154.27,3.2423]
[1728971164406,0.12502,154.31,154.26,5.16]
[1728971164810,0.12502,154.31,154.27,3.2424]
[1728971165011,0.12502,154.31,154.26,5.16]
[1728971165908,0.12502,154.31,154.23,2.6511]
[1728971165909,0.12502,154.31,154.23,3.2432]
[1728971166110,0.12502,154.31,154.24,5.16]
[1728971166308,0.12502,154.31,154.22,5.16]
[1728971166511,3.2429,154.26,154.22,5.16]
[1728971168604,3.2422,154.29,154.22,8.4034]
[1728971168910,0.12502,154.31,154.22,5.16]
[1728971169708,3.242,154.3,154.25,3.2429]
[1728971170404,0.12502,154.31,154.24,28.16748725]
[1728971170617,0.12502,154.31,154.24,24.92]
[1728971171008,3.36672,154.31,154.26,3.2426]
[1728971171203,0.12502,154.31,154.27,5.16]
[1728971171614,0.12502,154.31,154.28,3.2422]
[1728971171812,0.12502,154.31,154.27,5.16]
[1728971172112,3.2408,154.36,154.29,24.92]
[1728971172726,3.36542,154.37,154.29,24.92]
[1728971173415,3.36542,154.37,154.32,3.2414]
[1728971173616,3.2408,154.36,154.32,5.16]
[1728971173910,0.12502,154.37,154.32,5.16]
[1728971175211,3.2406,154.36,154.32,5.16]
[1728971176216,3.36562,154.37,154.32,5.16]
[1728971176621,3.36562,154.37,154.31,3.2415]
[1728971176915,0.12502,154.37,154.32,5.2]
[1728971177713,0.12502,154.37,154.32,8.42949076]
[1728971178320,0.12502,154.37,154.32,33.34949076]
[1728971178620,0.12502,154.37,154.33,3.2411]
[1728971178828,0.12502,154.37,154.32,33.34949076]
[1728971179325,0.12502,154.37,154.34,3.2409]
[1728971180622,0.12502,154.37,154.32,33.34949076]
[1728971181222,0.12502,154.37,154.34,3.2409]
[1728971181611,0.12502,154.37,154.32,33.34949076]
[1728971182024,0.12502,154.37,154.35,3.2407]
[1728971182215,0.12502,154.37,154.36,5.2]
[1728971182413,0.12502,154.37,154.36,8.4406]
[1728971183019,0.12502,154.37,154.36,5.2]
[1728971183224,0.12502,154.37,154.32,3.22949076]
[1728971183419,0.12502,154.37,154.33,5.2]
[1728971183623,3.241,154.34,154.33,5.2]
[1728971183933,0.12502,154.37,154.33,5.2]
[1728971184224,3.2409,154.35,154.33,5.2]
[1728971184823,3.2408,154.36,154.33,5.2]
[1728971185124,0.12502,154.37,154.33,5.2]
[1728971186025,3.2407,154.36,154.33,5.2]
[1728971187824,0.12502,154.37,154.33,5.2]
[1728971189828,0.12502,154.37,154.36,3.2406]
[1728971192128,0.12502,154.37,154.33,5.2]
[1728971192635,0.12502,154.37,154.34,3.2409]
[1728971194126,3.36542,154.37,154.34,3.2409]
[1728971194633,0.12502,154.37,154.33,5.2]
[1728971194932,0.12502,154.37,154.34,24.92]
[1728971195428,3.2397,154.41,154.34,24.92]
[1728971195830,0.12502,154.43,154.34,24.92]
[1728971196036,3.2398,154.4,154.37,3.2402]
[1728971196225,0.12502,154.43,154.38,5.2]
[1728971196425,0.12502,154.43,154.35,5.2]
[1728971196727,3.2401,154.39,154.36,3.2406]
[1728971197528,3.2398,154.4,154.37,3.2403]
[1728971198927,3.2398,154.4,154.36,3.2405]
[1728971202333,3.2398,154.4,154.37,3.2402]
[1728971202938,3.2398,154.4,154.36,3.2405]
[1728971203525,3.2398,154.4,154.37,3.2402]
[1728971204027,3.2396,154.41,154.38,3.2401]
[1728971204431,3.2394,154.42,154.38,3.2401]
[1728971205638,0.12502,154.43,154.4,3.2396]
[1728971206336,0.12502,154.43,154.39,5.2]
[1728971207336,3.2397,154.41,154.39,5.2]
[1728971208339,3.36432,154.43,154.39,5.2]
[1728971209137,3.2395,154.42,154.39,5.2]
[1728971209334,0.12502,154.43,154.39,5.2]
[1728971210742,0.12502,154.43,154.4,3.2397]
[1728971211036,0.12502,154.43,154.41,15.57]
[1728971211537,0.12502,154.43,154.37,15.57]
[1728971211840,3.2395,154.42,154.39,5.12]
[1728971212732,0.12502,154.43,154.39,5.12]
[1728971212939,0.12502,154.43,154.36,8.3606]
[1728971213336,3.2397,154.41,154.36,8.3606]
[1728971214640,3.2396,154.41,154.37,3.2403]
[1728971216343,3.2396,154.41,154.36,23.9304]
[1728971217548,3.2398,154.4,154.36,23.9304]
[1728971220754,0.12502,154.43,154.36,20.69]
[1728971221454,3.2397,154.41,154.37,3.2403]
[1728971222950,3.2397,154.41,154.36,20.69]
[1728971223150,3.2397,154.41,154.37,3.2403]
[1728971224558,3.2398,154.4,154.37,3.2403]
[1728971224759,0.12502,154.43,154.36,15.57]
[1728971224956,0.12502,154.43,154.37,5.12]
[1728971225165,3.2402,154.38,154.37,5.12]